bitfinex-derivatives/quotes_SOLF0:USTF0_20250821
["timestamp","ask_amount","ask_price","bid_price","bid_amount"]
[1755794013346,2.92,182.03,181.92,2.92]
[1755794014447,3.0453592,182.02,181.92,11.4627592]
[1755794014953,3.0453592,182.02,181.92,5.9653592]
[1755794015546,2.92,182.01,181.92,2.92]
[1755794015747,3.0453592,182.0,181.92,2.92]
[1755794016744,2.92,182.01,181.92,8.4176]
[1755794016948,2.92,182.01,181.94,2.92]
[1755794018346,3.0453592,182.02,181.94,2.92]
[1755794018552,2.92,182.04,181.95,3.0453592]
[1755794018855,2.92,182.04,181.96,2.92]
[1755794020058,6.00872713,182.08,181.96,8.4163]
[1755794020354,5.9653592,182.07,181.96,2.92]
[1755794020752,5.9653592,182.07,181.97,5.4959]
[1755794020947,5.9653592,182.07,181.96,2.92]
[1755794022458,5.9653592,182.07,181.97,5.496]
[1755794022654,5.9653592,182.07,181.96,2.92]
[1755794023359,3.0453592,182.03,181.96,2.92]
[1755794023756,2.92,182.02,181.93,3.0453592]
[1755794025050,3.0453592,182.01,181.92,2.92]
[1755794025657,3.0453592,181.99,181.92,2.92]
[1755794026957,2.92,182.0,181.92,2.92]
[1755794027266,3.0453592,181.99,181.92,2.92]
[1755794031562,3.0453592,181.97,181.88,2.92]
[1755794031754,3.0453592,181.95,181.88,2.92]
[1755794031959,2.92,181.92,181.84,2.92]
[1755794032963,2.92,181.92,181.84,8.4199]
[1755794033165,3.0453592,181.91,181.84,2.92]
[1755794033665,2.92,181.92,181.84,2.92]
[1755794035466,3.0453592,181.91,181.84,2.92]
[1755794035662,3.0453592,181.98,181.8,2.85]
[1755794035663,3.0453592,181.87,181.8,2.85]
[1755794037067,2.8,181.86,181.8,2.85]
[1755794037570,3.0453592,181.83,181.75,2.85]
[1755794038171,5.8453592,181.81,181.72,369.38]
[1755794038369,3.0453592,181.79,181.72,369.38]
[1755794038573,3.0453592,181.79,181.73,2.85]
[1755794038773,5.8453592,181.81,181.74,5.503]
[1755794038972,5.8453592,181.81,181.73,2.85]
[1755794040174,3.0453592,181.83,181.73,2.85]
[1755794040364,3.0453592,181.83,181.74,2.85]
[1755794040565,2.8,181.85,181.75,3.0453592]
[1755794040876,5.8453592,181.85,181.74,2.85]
[1755794041178,5.8453592,181.85,181.75,5.5025]
[1755794041376,3.0453592,181.83,181.75,5.5025]
[1755794041676,2.8,181.82,181.74,2.85]
[1755794041878,3.0453592,181.81,181.74,2.85]
[1755794044574,3.0453592,181.79,181.72,369.38]
[1755794045474,3.0453592,181.79,181.7,2.85]
[1755794045782,3.0453592,181.77,181.7,2.85]
[1755794046481,5.8453592,181.75,181.66,2.85]
[1755794046674,5.8453592,181.75,181.66,140.89]
[1755794046880,5.8453592,181.75,181.66,2.85]
[1755794047375,3.0453592,181.73,181.66,2.85]
[1755794047978,3.0453592,181.71,181.62,510.51]
[1755794048373,3.0453592,181.71,181.62,372.47]
[1755794049177,3.0453592,181.69,181.58,2.85]
[1755794049479,3.0453592,181.69,181.6,2.85]
[1755794051282,3.0453592,181.72,181.62,2.85]
[1755794051475,3.0453592,181.72,181.64,5.5058]
[1755794051983,2.8,181.64,181.53,2.85]
[1755794052181,3.0453592,181.61,181.53,141.35]
[1755794052374,3.0453592,181.61,181.54,2.85]
[1755794052580,3.0453592,181.64,181.56,2.85]
[1755794052779,3.0453592,181.62,181.56,2.85]
[1755794052984,3.0453592,181.6,181.54,138.54]
[1755794053178,3.0453592,181.6,181.54,141.39]
[1755794053378,3.0453592,181.61,181.54,141.39]
[1755794053580,3.0453592,181.61,181.54,2.85]
[1755794053780,3.0453592,181.61,181.54,141.39]
[1755794053979,3.0453592,181.61,181.54,2.85]
[1755794054179,5.8453592,181.59,181.54,2.85]
[1755794054380,2.8,181.59,181.54,2.85]
[1755794054581,2.8,181.63,181.55,2.85]
[1755794056384,2.8,181.63,181.49,2.85]
[1755794056582,0.95853245,181.67,181.53,138.52]
[1755794056583,2.8,181.6,181.53,138.52]
[1755794057179,2.8,181.6,181.49,141.41]
[1755794057381,2.8,181.6,181.5,5.5102]
[1755794057685,2.8,181.6,181.49,2.85]
[1755794057985,2.8,181.57,181.49,2.85]
[1755794059785,2.8,181.57,181.46,5.5114]
[1755794060082,4.98629349,181.55,181.45,2.85]
[1755794060282,2.8,181.54,181.45,2.85]
[1755794061585,4.98629349,181.61,181.43,138.52]
[1755794061586,2.8,181.51,181.43,138.52]
[1755794061979,2.8,181.51,181.42,369.78]
[1755794062489,2.8,181.51,181.42,508.28]
[1755794062787,2.8,181.51,181.42,369.78]
[1755794063682,2.8,181.51,181.43,2.9]
[1755794063987,7.95629349,181.55,181.43,2.9]
[1755794064188,7.95629349,181.55,181.46,5.5114]
[1755794064390,7.95629349,181.55,181.47,2.9]
[1755794065680,4.98629349,181.53,181.47,2.9]
[1755794067082,2.97,181.55,181.47,2.9]
[1755794069386,4.98629349,181.59,181.47,2.9]
[1755794069587,4.98629349,181.59,181.49,5.5104]
[1755794069792,4.98629349,181.59,181.47,2.9]
[1755794069985,2.97,181.55,181.47,2.9]
[1755794070382,2.97,181.6,181.47,2.9]
[1755794070587,2.97,181.6,181.53,5.5093]
[1755794070786,2.97,181.6,181.52,2.9]
[1755794071192,2.97,181.6,181.53,5.5094]
[1755794071389,7.95629349,181.64,181.52,141.54]
[1755794071897,4.98629349,181.63,181.52,141.54]
[1755794072090,2.97,181.62,181.52,141.54]
[1755794072891,2.97,181.62,181.52,8.4096]
[1755794074690,2.97,181.62,181.52,2.9]
[1755794077591,4.98629349,181.6,181.52,2.9]
[1755794077791,2.97,181.59,181.52,2.9]
[1755794078298,2.97,181.59,181.47,3.06021598]
[1755794078299,3.06021598,181.58,181.47,3.06021598]
[1755794078497,3.06021598,181.56,181.48,2.9]
[1755794079493,3.06021598,181.55,181.48,2.9]
[1755794079897,3.06021598,181.53,181.44,2.9]
[1755794080100,3.06021598,181.51,181.44,2.9]
[1755794080293,4.99092678,181.53,181.44,2.9]
[1755794082903,2.97,181.49,181.42,369.78]
[1755794083097,2.97,181.49,181.4,141.3]
[1755794083500,2.97,181.49,181.4,2.9]
[1755794085100,2.97,181.46,181.36,2.9]
[1755794085503,2.97,181.46,181.37,5.5141]
[1755794085907,2.97,181.46,181.36,2.9]
[1755794086499,4.99092678,181.47,181.36,2.9]
[1755794086702,4.99092678,181.47,181.39,8.4134]
[1755794087205,4.99092678,181.47,181.39,2.9]
[1755794088003,4.99092678,181.47,181.4,5.5131]
[1755794088607,4.99092678,181.47,181.39,2.9]
[1755794089307,4.99092678,181.47,181.39,8.4134]
[1755794089806,7.96092678,181.47,181.39,2.9]
[1755794090003,4.99092678,181.44,181.3,2.9]
[1755794090307,4.99092678,181.37,181.3,8.4163]
[1755794090501,4.99092678,181.37,181.3,2.9]
[1755794092396,13.40432678,181.37,181.3,2.9]
[1755794094107,8.4134,181.37,181.3,2.9]
[1755794094309,4.99092678,181.36,181.3,2.9]
[1755794094605,4.99092678,181.39,181.3,2.9]
[1755794095004,4.99092678,181.39,181.23,139.59977495]
[1755794095005,4.99092678,181.42,181.34,2.97]
[1755794095709,4.99092678,181.42,181.34,8.485]
[1755794095913,2.91,181.43,181.34,2.97]
[1755794096107,4.99092678,181.46,181.34,2.97]
[1755794096314,7.90092678,181.46,181.34,2.97]
[1755794096612,4.99092678,181.43,181.34,2.97]
[1755794097206,4.99092678,181.43,181.35,5.5148]
[1755794097407,4.99092678,181.43,181.34,2.97]
[1755794097912,7.90092678,181.46,181.34,2.97]
[1755794098514,7.90092678,181.46,181.38,2.97]
[1755794098916,7.90092678,181.46,181.38,8.4839]
[1755794099115,7.90092678,181.46,181.38,2.97]
[1755794100325,4.99092678,181.49,181.38,2.97]
[1755794100615,4.99092678,181.49,181.41,5.513]
[1755794100808,4.99092678,181.49,181.41,2.97]
[1755794101008,4.99092678,181.46,181.35,2.97]
[1755794101313,4.99092678,181.46,181.35,8.4847]
[1755794101314,2.91,181.45,181.35,8.4847]
[1755794101612,4.99092678,181.46,181.35,2.97]
[1755794102010,2.91,181.45,181.35,2.97]
[1755794102213,4.99092678,181.43,181.35,2.97]
[1755794102611,2.91,181.42,181.31,2.97]
[1755794103705,4.99092678,181.5,181.31,2.97]
[1755794103706,2.91,181.39,181.31,2.97]
[1755794107311,4.99092678,181.36,181.24,2.97]
[1755794107514,2.91,181.35,181.24,2.97]
[1755794108207,4.99092678,181.33,181.24,2.97]
[1755794108615,2.91,181.32,181.24,2.97]
[1755794109505,2.91,181.32,181.2,370.52]
[1755794109506,2.91,181.32,181.21,2.97]
[1755794109917,2.91,181.32,181.22,5.5188]
[1755794110307,2.91,181.32,181.21,2.97]
[1755794111411,2.91,181.26,181.16,2.97]
[1755794112519,2.91,181.26,181.17,5.52]
[1755794113517,2.91,181.26,181.18,5.52]
[1755794113719,2.91,181.26,181.16,2.97]
[1755794113913,4.99092678,181.3,181.16,7.96092678]
[1755794114115,4.99092678,181.3,181.21,2.97]
[1755794114320,2.91,181.29,181.21,2.97]
[1755794115622,2.91,181.29,181.22,5.5187]
[1755794116220,2.91,181.29,181.21,2.97]
[1755794116817,2.91,181.29,181.21,8.4888]
[1755794117018,2.91,181.29,181.21,2.97]
[1755794117220,4.99092678,181.3,181.21,2.97]
[1755794117520,7.90092678,181.33,181.21,2.97]
[1755794117916,7.90092678,181.33,181.26,5.5174]
[1755794118112,7.90092678,181.33,181.25,2.97]
[1755794118519,4.99092678,181.36,181.2,4.99092678]
[1755794118713,4.99092678,181.36,181.29,2.97]
[1755794119122,2.91,181.35,181.21,2.97]
[1755794119324,7.90092678,181.33,181.21,2.97]
[1755794119514,7.90092678,181.33,181.24,5.5181]
[1755794119717,7.90092678,181.33,181.21,2.97]
[1755794120419,7.90092678,181.33,181.25,5.5177]
[1755794120616,7.90092678,181.33,181.21,2.97]
[1755794121015,7.90092678,181.33,181.27,5.5172]
[1755794121526,4.99092678,181.36,181.25,2.97]
[1755794122020,2.91,181.37,181.25,2.97]
[1755794122520,4.99092678,181.39,181.25,2.97]
[1755794122820,2.91,181.41,181.28,2.8]
[1755794123027,3.06,181.38,181.28,2.8]
[1755794123223,4.99092678,181.36,181.28,2.8]
[1755794123614,3.06,181.38,181.32,5.5156]
[1755794123819,3.06,181.38,181.25,2.8]
[1755794124021,3.06,181.38,181.27,2.8]
[1755794124226,3.06,181.38,181.32,5.5156]
[1755794124427,3.06,181.38,181.27,2.8]
[1755794124723,4.99092678,181.36,181.27,2.8]
[1755794124927,3.06,181.38,181.27,2.8]
[1755794125123,4.99092678,181.36,181.27,2.8]
[1755794125324,8.05092678,181.36,181.27,2.8]
[1755794126027,8.05092678,181.36,181.28,5.5169]
[1755794126824,8.05092678,181.36,181.2,4.99092678]
[1755794126825,4.99092678,181.36,181.2,4.99092678]
[1755794127131,3.06,181.35,181.22,2.8]
[1755794128531,3.06,181.35,181.27,5.517]
[1755794128722,3.06,181.35,181.22,2.8]
[1755794128926,4.99092678,181.3,181.22,2.8]
[1755794129130,3.06,181.29,181.22,2.8]
[1755794129331,10.99965391,181.39,181.18,370.74]
[1755794129332,3.06,181.26,181.18,370.74]
[1755794129628,3.06,181.26,181.21,5.5191]
[1755794129827,4.99092678,181.27,181.18,370.74]
[1755794130128,4.99092678,181.27,181.21,2.8]
[1755794130824,4.99092678,181.27,181.21,8.319]
[1755794131026,4.99092678,181.27,181.21,2.8]
[1755794131227,4.99092678,181.27,181.22,5.5185]
[1755794131628,4.99092678,181.27,181.21,2.8]
[1755794132431,4.99092678,181.27,181.18,370.74]
[1755794133430,4.99092678,181.27,181.21,5.5188]
[1755794133631,4.99092678,181.27,181.18,370.74]
[1755794133832,8.05092678,181.3,181.19,2.8]
[1755794134036,8.05092678,181.3,181.21,5.5188]
[1755794134336,8.05092678,181.3,181.19,2.8]
[1755794134837,8.05092678,181.27,181.19,2.8]
[1755794135533,4.99092678,181.24,181.15,5.5207]
[1755794135736,3.06,181.23,181.14,2.8]
[1755794136032,3.06,181.2,181.11,2.8]
[1755794136437,3.0968848,181.2,181.14,0.04078872]
[1755794137735,10.88781158,181.2,181.14,0.04078872]
[1755794138736,3.0968848,181.2,181.14,0.04078872]
[1755794138933,3.0968848,181.2,181.14,5.56178872]
[1755794139241,3.0968848,181.2,181.14,0.04078872]
[1755794139242,0.0368848,181.2,181.14,0.04078872]
[1755794139442,0.0368848,181.2,181.17,5.5202]
[1755794139637,0.0368848,181.2,181.14,0.04078872]
[1755794139839,0.0368848,181.2,181.17,2.8]
[1755794140040,0.0368848,181.2,181.14,0.04078872]
[1755794140041,0.0368848,181.2,181.19,2.8]
[1755794140233,0.0368848,181.2,181.19,8.3197]
[1755794140644,4.99092678,181.29,181.22,5.5185]
[1755794140831,4.99092678,181.29,181.19,2.8]
[1755794141035,8.05092678,181.32,181.19,4.99092678]
[1755794141242,8.05092678,181.32,181.2,2.8]
[1755794141943,8.05092678,181.32,181.24,0.03530644]
[1755794142344,8.05092678,181.32,181.24,2.83530644]
[1755794143440,4.99092678,181.35,181.24,2.83530644]
[1755794143635,370.86,181.42,181.24,2.83530644]
[1755794143636,3.06,181.37,181.24,2.83530644]
[1755794143836,4.99092678,181.35,181.24,2.8]
[1755794144135,3.06,181.33,181.29,0.04198478]
[1755794144339,8.05092678,181.35,181.29,0.04198478]
[1755794145248,3.06,181.35,181.29,5.55858478]
[1755794145455,3.06,181.35,181.29,0.04198478]
[1755794147250,3.06,181.41,181.29,0.04198478]
[1755794147437,3.06,181.35,181.21,4.60964298]
[1755794147638,16.52,181.36,181.12,12.28670518]
[1755794147639,8.05092678,181.27,181.14,2.8]
[1755794147943,3.06,181.27,181.17,2.8]
[1755794148337,3.06,181.31,181.17,2.8]
[1755794148547,3.06,181.31,181.19,5.5197]
[1755794148743,3.06,181.31,181.2,2.8]
[1755794150047,3.06,181.28,181.16,2.8]
[1755794150945,3.06,181.28,181.16,8.3206]
[1755794151143,4.99092678,181.26,181.16,2.8]
[1755794151345,3.06,181.25,181.16,8.3206]
[1755794151743,3.06,181.25,181.16,2.8]
[1755794151939,8.05092678,181.29,181.18,5.5197]
[1755794152139,8.05092678,181.29,181.16,2.8]
[1755794152546,8.05092678,181.29,181.17,5.5201]
[1755794152748,8.05092678,181.29,181.16,2.8]
[1755794152946,8.05092678,181.29,181.18,5.52]
[1755794153451,8.05092678,181.29,181.16,2.8]
[1755794153655,8.05092678,181.29,181.16,145.54]
[1755794154047,2.81,181.28,181.16,2.8]
[1755794154347,4.99092678,181.26,181.16,2.8]
[1755794155554,2.81,181.28,181.16,2.8]
[1755794155753,4.99092678,181.29,181.21,2.95]
[1755794156156,7.80092678,181.29,181.21,2.95]
[1755794156357,7.80092678,181.29,181.17,145.63]
[1755794156552,7.80092678,181.29,181.17,145.61]
[1755794156757,7.80092678,181.29,181.2,5.5191]
[1755794157853,7.80092678,181.29,181.19,5.5196]
[1755794158065,7.80092678,181.29,181.17,2.95]
[1755794158261,4.99092678,181.26,181.17,2.95]
[1755794158563,4.99092678,181.26,181.19,5.5197]
[1755794158760,4.99092678,181.26,181.17,2.95]
[1755794158961,4.99092678,181.26,181.18,5.5199]
[1755794159662,4.99092678,181.26,181.19,5.5197]
[1755794159865,4.99092678,181.26,181.17,2.95]
[1755794160167,2.81,181.28,181.17,2.95]
[1755794160460,4.99092678,181.29,181.16,142.66]
[1755794160461,2.81,181.36,181.21,2.95]
[1755794160657,2.81,181.36,181.24,2.95]
[1755794161461,6.00872713,181.4,181.27,2.95]
[1755794161462,7.80092678,181.4,181.27,2.95]
[1755794161668,2.81,181.4,181.27,2.95]
[1755794162568,2.81,181.4,181.3,2.95]
[1755794162959,2.81,181.4,181.35,5.5146]
[1755794163161,4.99092678,181.43,181.31,2.95]
[1755794163459,2.81,181.45,181.33,2.95]
[1755794164066,2.81,181.45,181.38,5.5138]
[1755794164365,2.81,181.45,181.33,2.95]
[1755794164565,2.81,181.45,181.38,5.5137]
[1755794164761,2.81,181.45,181.37,2.95]
[1755794165162,2.81,181.45,181.39,5.5134]
[1755794166164,2.81,181.49,181.37,2.95]
[1755794166666,2.81,181.49,181.39,2.95]
[1755794167163,2.81,181.49,181.42,5.5127]
[1755794167862,2.81,181.49,181.4,5.513]
[1755794168166,2.81,181.49,181.39,2.95]
[1755794169356,2.81,181.49,181.39,8.4635]
[1755794169558,2.81,181.49,181.39,2.95]
[1755794170558,2.81,181.46,181.35,2.95]
[1755794171165,2.81,181.46,181.38,5.5138]
[1755794171563,2.81,181.46,181.35,2.95]
[1755794171868,2.81,181.43,181.35,2.95]
[1755794172069,2.81,181.43,181.29,147.07092678]
[1755794172364,2.81,181.4,181.31,5.516]
[1755794172557,4.99092678,181.38,181.26,512.96]
[1755794172759,4.99092678,181.29,181.19,2.95]
[1755794173467,2.81,181.31,181.19,2.95]
[1755794173666,4.99092678,181.3,181.19,2.95]
[1755794174367,4.99092678,181.3,181.22,5.5185]
[1755794174569,4.99092678,181.3,181.19,2.95]
[1755794174964,4.99092678,181.3,181.22,5.5187]
[1755794175264,4.99092678,181.3,181.19,2.95]
[1755794176366,7.80092678,181.31,181.19,2.95]
[1755794176867,4.99092678,181.34,181.23,2.95]
[1755794177668,4.99092678,181.34,181.26,5.5175]
[1755794177867,4.99092678,181.34,181.23,2.95]
[1755794178369,4.99092678,181.34,181.25,5.5176]
[1755794178569,4.99092678,181.34,181.23,2.95]
[1755794178874,2.81,181.35,181.24,2.95]
[1755794180475,2.81,181.35,181.27,5.517]
[1755794180673,2.81,181.35,181.24,2.95]
[1755794181070,2.81,181.35,181.27,5.517]
[1755794181678,2.81,181.35,181.24,2.95]
[1755794182267,2.81,181.39,181.26,2.95]
[1755794182667,2.81,181.39,181.3,5.5162]
[1755794183274,2.81,181.39,181.26,2.95]
[1755794183578,7.80092678,181.39,181.26,2.95]
[1755794184470,2.8,181.38,181.21,370.66]
[1755794184675,2.8,181.35,181.24,2.8]
[1755794185074,2.8,181.35,181.25,2.8]
[1755794185279,7.79092678,181.39,181.25,2.8]
[1755794185773,7.79092678,181.39,181.3,5.5161]
[1755794186476,7.79092678,181.39,181.25,2.8]
[1755794186968,7.79092678,181.39,181.32,5.5157]
[1755794186969,2.8,181.39,181.32,5.5157]
[1755794187173,2.8,181.39,181.29,2.8]
[1755794187372,2.8,181.39,181.3,5.5161]
[1755794187573,2.8,181.39,181.29,2.8]
[1755794188168,2.8,181.39,181.3,5.5162]
[1755794188578,2.8,181.39,181.31,5.5158]
[1755794188774,2.8,181.39,181.29,2.8]
[1755794189078,4.99092678,181.42,181.29,2.8]
[1755794189280,2.8,181.43,181.31,2.8]
[1755794189478,2.8,181.43,181.33,4.99092678]
[1755794189674,2.8,181.47,181.34,2.8]
[1755794191281,2.8,181.47,181.41,5.5128]
[1755794191581,2.8,181.47,181.37,2.8]
[1755794191779,2.8,181.47,181.41,5.5128]
[1755794191973,4.99092678,181.48,181.37,2.8]
[1755794192174,4.99092678,181.48,181.28,4.99092678]
[1755794192175,2.8,181.51,181.4,2.8]
[1755794192373,2.8,181.51,181.45,5.5116]
[1755794192580,2.8,181.51,181.4,2.8]
[1755794192876,2.8,181.51,181.45,5.5117]
[1755794193074,2.8,181.55,181.42,4.99092678]
[1755794193274,4.99092678,181.53,181.37,2.8]
[1755794193474,2.8,181.52,181.38,7.79092678]
[1755794193678,2.8,181.52,181.39,2.8]
[1755794194679,2.8,181.52,181.42,5.5127]
[1755794195583,4.99092678,181.5,181.39,2.8]
[1755794195792,2.8,181.49,181.39,2.8]
[1755794196286,2.8,181.46,181.35,373.46]
[1755794197179,7.79092678,181.5,181.37,4.99092678]
[1755794197384,7.79092678,181.5,181.38,2.8]
[1755794198186,2.8,181.5,181.42,2.8]
[1755794198389,4.99092678,181.53,181.42,2.8]
[1755794198886,4.99092678,181.5,181.36,2.8]
[1755794199187,2.8,181.49,181.36,2.8]
[1755794199393,2.8,181.49,181.43,5.5123]
[1755794199690,2.8,181.49,181.39,2.8]
[1755794199991,2.8,181.49,181.42,5.5126]
[1755794201582,2.8,181.49,181.4,5.5131]
[1755794201786,2.8,181.46,181.35,370.66]
[1755794202083,7.79092678,181.46,181.36,5.5143]
[1755794202291,7.79092678,181.46,181.35,370.66]
[1755794203289,7.79092678,181.46,181.37,5.5141]
[1755794203487,7.79092678,181.46,181.35,370.66]
[1755794203986,2.8,181.45,181.35,370.66]
[1755794204188,4.99092678,181.43,181.35,370.66]
[1755794204489,7.79092678,181.45,181.35,370.66]
[1755794204891,4.99092678,181.42,181.35,370.66]
[1755794205090,2.8,181.41,181.32,143.76]
[1755794206591,2.8,181.41,181.32,149.2755]
[1755794207692,2.8,181.41,181.32,143.76]
[1755794207890,2.8,181.41,181.33,2.8]
[1755794208291,4.99092678,181.44,181.36,5.5145]
[1755794208483,7.79092678,181.45,181.36,5.5145]
[1755794208682,7.79092678,181.45,181.36,2.8]
[1755794209085,2.8,181.45,181.36,2.8]
[1755794209292,4.99092678,181.44,181.33,2.8]
[1755794210592,4.99092678,181.44,181.36,5.5143]
[1755794210792,4.99092678,181.44,181.33,2.8]
[1755794210993,2.8,181.45,181.39,5.5136]
[1755794211195,2.8,181.45,181.37,2.8]
[1755794211594,2.8,181.45,181.38,5.5138]
[1755794212302,2.8,181.45,181.37,2.8]
[1755794212492,2.8,181.45,181.33,4.99092678]
[1755794212493,4.99092678,181.44,181.33,146.08]
[1755794213092,4.99092678,181.44,181.36,5.5143]
[1755794213294,4.99092678,181.41,181.29,3.0]
[1755794214089,4.99092678,181.41,181.3,3.0]
[1755794214292,3.0,181.43,181.3,3.0]
[1755794215391,3.0,181.43,181.29,4.99092678]
[1755794215392,3.0,181.43,181.34,8.5149]
[1755794215598,3.0,181.43,181.34,3.0]
[1755794215796,3.0,181.43,181.36,5.5144]
[1755794216402,3.0,181.43,181.28,143.3]
[1755794216403,3.0,181.43,181.29,3.0]
[1755794216691,7.99092678,181.43,181.29,3.0]
[1755794216897,3.0,181.43,181.33,5.5154]
[1755794217296,3.0,181.43,181.32,3.0]
[1755794217697,3.0,181.43,181.33,5.5154]
[1755794218201,3.0,181.43,181.34,5.515]
[1755794218497,3.0,181.43,181.32,3.0]
[1755794218697,3.0,181.43,181.35,5.5146]
[1755794219199,3.0,181.43,181.34,5.515]
[1755794219392,3.0,181.43,181.32,3.0]
[1755794219590,4.99092678,181.5,181.32,3.0]
[1755794219591,4.99092678,181.41,181.32,3.0]
[1755794219792,3.0,181.4,181.26,4.99092678]
[1755794219992,3.0,181.4,181.27,145.96]
[1755794220198,3.0,181.4,181.31,5.516]
[1755794220401,3.0,181.4,181.29,3.0]
[1755794220892,7.99092678,181.44,181.3,3.0]
[1755794221295,7.99092678,181.44,181.36,5.5143]
[1755794221492,7.99092678,181.44,181.35,3.0]
[1755794221897,7.99092678,181.44,181.36,5.5143]
[1755794222097,7.99092678,181.44,181.35,3.0]
[1755794222098,3.0,181.44,181.35,3.0]
[1755794222301,6.00872713,181.51,181.35,3.0]
[1755794222496,3.0,181.49,181.36,145.88]
[1755794222701,3.0,181.49,181.38,4.99092678]
[1755794222901,3.0,181.49,181.39,3.0]
[1755794223202,3.0,181.49,181.37,3.0]
[1755794223702,3.0,181.49,181.37,4.99092678]
[1755794223901,3.0,181.49,181.42,5.5126]
[1755794224101,3.0,181.49,181.39,3.0]
[1755794224497,3.0,181.49,181.42,5.5127]
[1755794224806,3.0,181.49,181.39,3.0]
[1755794225103,3.0,181.49,181.43,5.5121]
[1755794225304,3.0,181.53,181.38,3.0]
[1755794225502,4.99092678,181.51,181.41,3.0]
[1755794225806,3.0,181.5,181.41,3.0]
[1755794226006,3.0,181.5,181.4,5.5131]
[1755794226205,3.0,181.5,181.37,145.88]
[1755794226406,3.0,181.5,181.38,3.0]
[1755794226601,0.95902114,181.58,181.36,3.0]
[1755794226602,3.0,181.47,181.36,3.0]
[1755794226807,4.99092678,181.45,181.36,3.0]
[1755794227206,3.0,181.44,181.36,3.0]
[1755794227403,3.0,181.44,181.36,8.5143]
[1755794227606,3.0,181.44,181.36,3.0]
[1755794228006,3.0,181.44,181.37,5.5141]
[1755794228305,3.0,181.44,181.36,3.0]
[1755794228700,3.0,181.44,181.31,145.92]
[1755794229002,4.99092678,181.42,181.31,145.92]
[1755794229200,4.99092678,181.42,181.32,3.0]
[1755794229409,3.0,181.44,181.32,3.0]
[1755794229600,4.99092678,181.43,181.32,3.0]
[1755794230008,3.0,181.42,181.32,3.0]
[1755794231006,3.0,181.39,181.29,3.0]
[1755794231604,4.99092678,181.37,181.29,3.0]
[1755794231801,3.0,181.36,181.27,143.36]
[1755794232208,3.0,181.36,181.29,5.5165]
[1755794232709,3.0,181.36,181.27,143.36]
[1755794232906,3.0,181.36,181.28,3.0]
[1755794233301,4.99092678,181.39,181.3,5.5161]
[1755794234410,4.99092678,181.39,181.31,5.5159]
[1755794234607,4.99092678,181.39,181.28,3.0]
[1755794235009,4.99092678,181.39,181.27,147.94841224]
[1755794235010,4.99092678,181.39,181.31,3.0]
[1755794235407,0.04155824,181.35,181.31,3.0]
[1755794235608,0.04155824,181.35,181.34,3.0]
[1755794236010,0.04155824,181.35,181.34,8.5151]
[1755794236702,0.04155824,181.35,181.34,3.0]
[1755794237105,0.04155824,181.35,181.34,8.5151]
[1755794237409,0.04155824,181.35,181.28,7.58841224]
[1755794237410,3.04155824,181.35,181.28,7.58841224]